bitfinex-derivatives/quotes_BTCF0:USTF0_20250915
["timestamp","ask_amount","ask_price","bid_price","bid_amount"]
[1757926203719,0.07228251,115180.0,115170.0,1.01435932]
[1757926203917,0.07228251,115180.0,115170.0,0.03927932]
[1757926204115,0.35324338,115180.0,115170.0,0.02581932]
[1757926204514,0.02119,115150.0,115140.0,0.03296008]
[1757926204817,0.02119,115150.0,115140.0,0.10609008]
[1757926205021,0.03398,115150.0,115140.0,0.48845008]
[1757926205218,0.05894241,115150.0,115140.0,0.48845008]
[1757926205420,0.05894241,115150.0,115140.0,0.10609008]
[1757926205722,0.30894241,115150.0,115140.0,0.04318008]
[1757926205921,0.30894241,115150.0,115140.0,0.50942008]
[1757926206221,0.30894241,115150.0,115140.0,0.02005008]
[1757926207114,0.30990328,115150.0,115140.0,0.02005008]
[1757926207315,0.33134328,115150.0,115140.0,0.02005008]
[1757926207614,0.33734328,115150.0,115140.0,0.02005008]
[1757926207816,0.03428,115140.0,115130.0,0.02697]
[1757926208011,0.05924241,115140.0,115130.0,0.02697]
[1757926208921,0.06124241,115140.0,115130.0,0.0044]
[1757926209222,0.31124241,115140.0,115130.0,0.0044]
[1757926209422,0.38862104,115140.0,115130.0,0.0044]
[1757926209625,0.35766017,115140.0,115130.0,0.0044]
[1757926210214,0.31124241,115140.0,115130.0,0.0044]
[1757926210419,0.31324241,115140.0,115130.0,0.0044]
[1757926211422,0.37513275,115140.0,115130.0,0.0044]
[1757926211623,0.35959825,115140.0,115130.0,0.0044]
[1757926212224,0.35759825,115140.0,115130.0,0.0044]
[1757926212527,0.02144,115110.0,115100.0,0.03598]
[1757926212723,0.05564241,115110.0,115100.0,0.03598]
[1757926212920,0.05564241,115110.0,115100.0,0.02257]
[1757926213128,0.07703532,115110.0,115100.0,0.02257]
[1757926213426,0.08653924,115110.0,115100.0,0.02257]
[1757926214329,0.08653924,115110.0,115100.0,0.02457]
[1757926214528,0.07729924,115110.0,115100.0,0.03798]
[1757926218425,0.07729924,115110.0,115100.0,0.03698]
[1757926218621,0.07729924,115110.0,115100.0,0.03878]
[1757926219326,0.07829924,115110.0,115100.0,0.03878]
[1757926219734,0.04740241,115110.0,115100.0,0.03878]
[1757926220635,0.04840241,115110.0,115100.0,0.03778]
[1757926221533,0.04940241,115110.0,115100.0,0.03778]
[1757926221934,0.08029924,115110.0,115100.0,0.03778]
[1757926222141,0.04940241,115110.0,115100.0,0.03778]
[1757926222725,0.02796241,115110.0,115100.0,0.4946308]
[1757926223433,0.04940241,115110.0,115100.0,0.15778]
[1757926223628,0.08029924,115110.0,115100.0,0.15778]
[1757926223831,0.08029924,115110.0,115100.0,0.03778]
[1757926224030,0.12665456,115110.0,115100.0,0.03778]
[1757926224228,0.08029924,115110.0,115100.0,0.03778]
[1757926224630,0.16714254,115110.0,115100.0,0.03778]
[1757926224932,0.13624571,115110.0,115100.0,0.03778]
[1757926225335,0.04940241,115110.0,115100.0,0.03778]
[1757926225530,0.13624571,115110.0,115100.0,0.03778]
[1757926231335,0.02796241,115110.0,115100.0,0.3746314]
[1757926231540,0.02796241,115110.0,115100.0,0.9246314]
[1757926231938,0.13624621,115110.0,115100.0,0.58778]
[1757926232139,0.13624621,115110.0,115100.0,0.03778]
[1757926234145,0.16714304,115110.0,115100.0,0.03778]
[1757926234743,0.13624621,115110.0,115100.0,0.03778]
[1757926235140,0.1112838,115110.0,115100.0,0.03778]
[1757926235439,0.13616004,115110.0,115100.0,0.03778]
[1757926235645,0.13616044,115110.0,115100.0,0.03778]
[1757926236441,0.04931624,115110.0,115100.0,0.03778]
[1757926236944,0.13616044,115110.0,115100.0,0.03778]
[1757926237347,0.13616044,115110.0,115100.0,0.1246318]
[1757926237644,0.02787624,115110.0,115100.0,0.9846318]
[1757926238842,0.02787624,115110.0,115100.0,0.89778]
[1757926238843,0.11472064,115110.0,115100.0,0.89778]
[1757926239143,0.13701064,115110.0,115100.0,1.16982]
[1757926239746,0.05016624,115110.0,115100.0,1.256672]
[1757926239941,0.05016624,115110.0,115100.0,1.255592]
[1757926240246,0.05016624,115110.0,115100.0,1.16874]
[1757926240444,0.05016624,115110.0,115100.0,0.03778]
[1757926240645,0.05016624,115110.0,115100.0,0.97826]
[1757926241051,0.02787624,115110.0,115100.0,1.065112]
[1757926241342,0.02787624,115110.0,115100.0,0.03778]
[1757926241542,0.02787624,115110.0,115100.0,1.52786]
[1757926242047,0.05016624,115110.0,115100.0,0.03778]
[1757926242242,0.05016624,115110.0,115100.0,0.3611]
[1757926242439,0.05016624,115110.0,115100.0,0.03778]
[1757926242646,0.05016624,115110.0,115100.0,0.66814]
[1757926243242,0.05016624,115110.0,115100.0,0.9595]
[1757926243547,0.05016624,115110.0,115100.0,0.03778]
[1757926243755,0.05016624,115110.0,115100.0,0.97562]
[1757926244253,0.05016624,115110.0,115100.0,0.03778]
[1757926244547,0.05016624,115110.0,115100.0,0.35914]
[1757926245351,0.02787624,115110.0,115100.0,0.35914]
[1757926245549,0.02787624,115110.0,115100.0,0.68914]
[1757926246647,0.02787624,115110.0,115100.0,0.7759923]
[1757926249245,0.01276,115070.0,115060.0,0.00887691]
[1757926249449,0.00621,115050.0,115040.0,0.03649]
[1757926249755,0.00621,115050.0,115040.0,0.05322]
[1757926249946,0.00621,115050.0,115030.0,0.01322]
[1757926250151,0.32614116,115050.0,115020.0,0.52486]
[1757926250452,0.05611804,115050.0,115030.0,0.03649]
[1757926250649,0.03089683,115050.0,115040.0,0.03649]
[1757926250849,0.03089683,115050.0,115040.0,0.96761]
[1757926251047,0.03089683,115060.0,115040.0,0.96761]
[1757926251256,0.05256532,115060.0,115050.0,0.03649]
[1757926251550,0.07778653,115060.0,115050.0,0.03649]
[1757926251743,0.07578653,115060.0,115050.0,0.03649]
[1757926251942,0.06232969,115060.0,115050.0,0.03649]
[1757926252646,0.06232969,115060.0,115050.0,0.15845]
[1757926252852,0.05611969,115060.0,115050.0,0.15845]
[1757926253052,0.02522121,115060.0,115050.0,0.15845]
[1757926253551,0.03243121,115060.0,115050.0,0.03649]
[1757926253744,0.03243121,115060.0,115050.0,0.21217]
[1757926254147,0.03243121,115060.0,115050.0,0.37905]
[1757926254551,0.12131371,115060.0,115050.0,0.37905]
[1757926255151,0.12131371,115060.0,115050.0,0.03649]
[1757926255354,0.37131371,115060.0,115050.0,0.01322]
[1757926255753,0.0931001,115050.0,115040.0,0.16126]
[1757926255952,0.0931001,115050.0,115040.0,0.18453]
[1757926256152,0.11186661,115050.0,115040.0,0.18453]
[1757926256646,0.11186661,115050.0,115040.0,0.75909]
[1757926256843,0.11186661,115050.0,115040.0,0.03649]
[1757926257051,0.11807661,115050.0,115040.0,0.03649]
[1757926257253,0.11186661,115050.0,115040.0,0.61281]
[1757926257552,0.11186661,115050.0,115040.0,0.96145]
[1757926258452,0.11286661,115050.0,115040.0,0.03649]
[1757926258653,0.11286661,115050.0,115040.0,0.66477]
[1757926258853,0.11907661,115050.0,115040.0,0.66477]
[1757926259257,0.11907661,115050.0,115040.0,0.03649]
[1757926259452,0.12107661,115050.0,115040.0,0.96009]
[1757926259653,0.12107661,115050.0,115040.0,0.03649]
[1757926260756,0.0931077,115040.0,115030.0,0.01322]
[1757926261061,0.11808421,115040.0,115030.0,0.01322]
[1757926261353,0.36808421,115040.0,115030.0,0.01322]
[1757926261551,0.0869053,115030.0,115020.0,0.01322]
[1757926261755,0.0931153,115030.0,115020.0,0.03585]
[1757926262264,0.0931153,115030.0,115020.0,0.01322]
[1757926262459,0.0931229,115020.0,115010.0,0.87343437]
[1757926262753,0.0931229,115020.0,115010.0,0.04063437]
[1757926262957,0.3431229,115020.0,115010.0,0.01849437]
[1757926263159,0.3431229,115020.0,115000.0,0.67432106]
[1757926263160,0.1095404,115010.0,115000.0,0.67432106]
[1757926263352,0.1095404,115010.0,115000.0,0.66061106]
[1757926263958,0.1085404,115010.0,115000.0,0.66061106]
[1757926264255,0.1085404,115010.0,115000.0,0.67432106]
[1757926264457,0.02262,115010.0,115000.0,0.69695106]
[1757926264756,0.0869169,115020.0,115010.0,0.03634]
[1757926265155,0.1095369,115020.0,115010.0,0.03634]
[1757926265455,0.1095369,115020.0,115010.0,0.03834]
[1757926265855,0.0869169,115020.0,115010.0,0.03834]
[1757926266059,0.1097569,115020.0,115010.0,0.03834]
[1757926266363,0.1097569,115020.0,115010.0,0.002]
[1757926266364,0.45495266,115020.0,115010.0,0.002]
[1757926266854,0.45495266,115020.0,115010.0,1e-07]
[1757926267052,0.45495266,115020.0,115010.0,0.0010001]
[1757926267252,0.20495266,115020.0,115010.0,0.0010001]
[1757926267660,0.20495266,115020.0,115010.0,0.0367601]
[1757926268357,0.13461696,115020.0,115010.0,0.0767601]
[1757926268557,0.13461696,115020.0,115010.0,0.0367601]
[1757926268558,0.11177696,115020.0,115010.0,0.0367601]
[1757926268854,0.11177696,115020.0,115010.0,0.03676]
[1757926269056,0.1097529,115020.0,115010.0,0.03676]
[1757926269255,0.13460937,115020.0,115010.0,0.001]
[1757926269455,0.38460937,115020.0,115010.0,0.001]
[1757926269660,0.13460937,115020.0,115010.0,0.03676]
[1757926269961,0.13460937,115020.0,115010.0,0.03576]
[1757926270858,0.11176937,115020.0,115010.0,0.03576]
[1757926271061,0.11176937,115020.0,115010.0,0.28576]
[1757926271249,0.11176937,115020.0,115010.0,0.82576]
[1757926271453,0.11176937,115020.0,115010.0,0.28576]
[1757926271857,0.13460937,115020.0,115010.0,0.03576]
[1757926272160,0.13460937,115020.0,115010.0,0.92621]
[1757926272860,0.13460937,115020.0,115010.0,0.93985]
[1757926273354,0.13460937,115020.0,115010.0,0.03576]
[1757926273556,0.13460937,115020.0,115010.0,0.01361]
[1757926274260,0.1097607,115010.0,115000.0,1.62229106]
[1757926274461,0.11177717,115010.0,115000.0,1.62229106]
[1757926275355,0.11177717,115010.0,115000.0,1.87229106]
[1757926275862,0.11177717,115010.0,115000.0,1.87329106]
[1757926276258,0.11177717,115010.0,115000.0,2.44329106]
[1757926276463,0.02485647,115010.0,115000.0,2.46121926]
[1757926276662,0.086918,115020.0,115010.0,0.03576]
[1757926276867,0.11196524,115020.0,115010.0,0.03576]
[1757926277366,0.14286372,115020.0,115010.0,0.03576]
[1757926277661,0.11196524,115020.0,115010.0,0.03576]
[1757926278268,0.16570372,115020.0,115010.0,0.96052]
[1757926279363,0.18082537,115020.0,115010.0,0.96052]
[1757926279565,0.18082537,115020.0,115010.0,0.96012]
[1757926279865,0.18182537,115020.0,115010.0,0.96012]
[1757926280169,0.18282537,115020.0,115010.0,0.96012]
[1757926280367,0.18282537,115020.0,115000.0,0.67422106]
[1757926280368,0.1097604,115010.0,115000.0,0.67422106]
[1757926280572,0.18082777,115010.0,115000.0,1.59730106]
[1757926281768,0.21169343,115010.0,115000.0,1.59730106]
[1757926282267,0.1656733,115010.0,115000.0,1.59730106]
[1757926282872,0.1656733,115010.0,115000.0,1.62697106]
[1757926283168,0.18082777,115010.0,115000.0,1.62629106]
[1757926283367,0.18082777,115010.0,115000.0,0.69637106]
[1757926283863,0.18082777,115010.0,115000.0,1.48617106]
[1757926284264,0.18082777,115010.0,115000.0,1.46402106]
[1757926285271,0.13480764,115010.0,115000.0,0.67422106]
[1757926285463,0.38480764,115010.0,115000.0,0.67422106]
[1757926285669,0.44669798,115010.0,115000.0,0.66061106]
[1757926286673,0.45069798,115010.0,115000.0,0.66061106]
[1757926286865,0.45457636,115010.0,115000.0,0.66061106]
[1757926287866,0.45457636,115010.0,115000.0,0.60747226]
[1757926288069,0.39280764,115010.0,115000.0,0.32134146]
[1757926288376,0.46617057,115010.0,115000.0,7e-08]
[1757926288665,0.39380764,115010.0,115000.0,7e-08]
[1757926289062,0.38880764,115010.0,115000.0,7e-08]
[1757926289262,0.47217057,115010.0,115000.0,7e-08]
[1757926290579,0.39080764,115010.0,115000.0,7e-08]
[1757926290879,0.39480764,115010.0,115000.0,7e-08]
[1757926291378,0.47217057,115010.0,115000.0,7e-08]
[1757926291777,0.0869398,114990.0,114980.0,0.01361]
[1757926292075,0.15831236,114990.0,114980.0,0.03576]
[1757926292280,0.109802,114970.0,114950.0,0.09207528]
[1757926292478,0.13484924,114970.0,114960.0,0.96872]
[1757926292877,0.13484924,114970.0,114960.0,0.96812]
[1757926293581,0.13384924,114970.0,114960.0,0.96876]
[1757926294084,0.16473482,114970.0,114960.0,0.96876]
[1757926294276,0.13384924,114970.0,114960.0,0.03576]
[1757926294485,0.16473482,114970.0,114960.0,0.03576]
[1757926294681,0.16573482,114970.0,114960.0,0.03576]
[1757926295176,0.21206014,114970.0,114960.0,0.96856]
[1757926295583,0.21406014,114970.0,114960.0,1.21856]
[1757926295783,0.16773482,114970.0,114960.0,1.21856]
[1757926296077,0.05893282,114970.0,114960.0,1.21856]
[1757926296274,0.06093282,114970.0,114960.0,1.3055225]
[1757926297185,0.05993282,114970.0,114960.0,1.3066825]
[1757926297385,0.06293282,114970.0,114960.0,1.3066825]
[1757926297582,0.03204724,114970.0,114960.0,1.3066825]
[1757926297789,0.03204724,114970.0,114960.0,1.21972]
[1757926298690,0.03204724,114970.0,114960.0,1.48632]
[1757926299286,0.03204724,114970.0,114960.0,1.23632]
[1757926299879,0.03204724,114970.0,114960.0,1.3232822]
[1757926300079,0.03204724,114970.0,114960.0,1.23632]
[1757926300888,0.03204724,114970.0,114960.0,1.3232822]
[1757926301683,0.03464724,114970.0,114960.0,1.3232822]
[1757926302682,0.03464724,114970.0,114960.0,1.8032822]
[1757926302886,0.0096,114970.0,114960.0,1.8032822]
[1757926303081,0.0096,114970.0,114960.0,0.6393222]
[1757926303287,0.0096,114970.0,114960.0,1.3050022]
[1757926303583,0.0096,114970.0,114960.0,1.3049976]
[1757926303789,0.0096,114970.0,114960.0,1.8449976]
[1757926303988,0.0096,114970.0,114960.0,2.1549976]
[1757926304184,0.0869322,115000.0,114990.0,0.03407]
[1757926304385,0.0869322,115000.0,114990.0,0.96551]
[1757926304580,0.17848516,115000.0,114990.0,0.96551]
[1757926304784,0.18382462,115000.0,114990.0,0.03407]
[1757926304986,0.15154197,115000.0,114990.0,0.03407]
[1757926305288,0.13223251,115000.0,114990.0,0.24475]
[1757926305490,0.17849847,115000.0,114990.0,0.24475]
[1757926305895,0.13223251,115000.0,114990.0,0.24475]
[1757926306195,0.13723251,115000.0,114990.0,0.24475]
[1757926306593,0.16807763,115000.0,114990.0,0.24475]
[1757926306795,0.14684763,115000.0,114990.0,0.24475]
[1757926307092,0.15084763,115000.0,114990.0,0.24475]
[1757926307294,0.06391543,115000.0,114990.0,0.24475]
[1757926307497,0.15084373,115000.0,114990.0,0.24475]
[1757926307791,0.03307031,115000.0,114990.0,1.00475]
[1757926307987,0.03984512,115000.0,114990.0,1.00475]
[1757926308189,0.03307031,115000.0,114990.0,1.00475]
[1757926308388,0.03307031,115000.0,114990.0,0.28407]
[1757926308589,0.03307031,115000.0,114990.0,1.21863]
[1757926308885,0.11999871,115000.0,114990.0,1.21879]
[1757926309194,0.14122871,115000.0,114990.0,0.03407]
[1757926309391,0.14122871,115000.0,114990.0,0.96831]
[1757926310994,0.11999871,115000.0,114990.0,0.96591]
[1757926311195,0.03307031,115000.0,114990.0,1.42591]
[1757926312400,0.03307031,115000.0,114990.0,1.44347535]
[1757926312899,0.03307031,115000.0,114990.0,1.53041165]
[1757926313103,0.009,115000.0,114990.0,1.82041165]
[1757926313596,0.009,115000.0,114990.0,2.07041165]
[1757926314100,0.15326577,115030.0,115020.0,0.03422]
[1757926314299,0.19928712,115030.0,115020.0,0.96474]
[1757926314792,0.11878712,115030.0,115020.0,1.35474]
[1757926314996,0.11878712,115030.0,115020.0,0.96474]
[1757926315292,0.04862135,115030.0,115020.0,1.29474]
[1757926315498,0.02626135,115030.0,115020.0,1.38474]
[1757926315795,0.02626135,115030.0,115020.0,1.29474]
[1757926316397,0.0026,115030.0,115020.0,1.29474]
[1757926316594,0.02624925,115030.0,115020.0,1.29474]
[1757926316803,0.0831,115030.0,115020.0,1.54474]
[1757926316990,0.0831,115030.0,115020.0,1.94689658]
[1757926317192,0.0841,115030.0,115020.0,1.94689658]
[1757926317696,0.0491,115030.0,115020.0,1.01637658]
[1757926317894,0.0491,115030.0,115020.0,1.94665658]
[1757926318194,0.0491,115030.0,115020.0,1.01837658]
[1757926318395,0.0491,115030.0,115020.0,1.94625658]
[1757926318692,0.0141,115030.0,115020.0,2.01464165]
[1757926318887,0.01341,115060.0,115030.0,0.0869055]
[1757926319096,0.05940014,115060.0,115050.0,0.02145]
[1757926319396,0.05940014,115060.0,115040.0,0.92876]
[1757926319698,0.03577,115050.0,115040.0,0.95021]
[1757926319897,0.05940014,115050.0,115040.0,0.95021]
[1757926320098,0.01341,115040.0,115020.0,0.001]
[1757926320399,0.05940014,115040.0,115030.0,0.94953]
[1757926320597,0.30940014,115040.0,115030.0,0.94953]
[1757926321397,0.30940014,115040.0,115030.0,0.02145]
[1757926321592,0.30940014,115040.0,115030.0,0.14193]
[1757926321794,0.30940014,115040.0,115030.0,0.25929]
[1757926323002,0.34024526,115040.0,115030.0,0.02145]
[1757926323301,0.34024526,115040.0,115030.0,0.14905]
[1757926323599,0.34224526,115040.0,115030.0,0.14905]
[1757926324602,0.28777,115040.0,115030.0,0.14905]
[1757926325300,0.28777,115040.0,115030.0,0.02145]
[1757926325499,0.03577,115030.0,115020.0,0.12853]
[1757926325701,0.01302,115020.0,114990.0,0.01756535]
[1757926325892,0.03589,115020.0,115010.0,0.02119]
[1757926326297,0.05949258,115020.0,115010.0,0.02119]
[1757926326500,0.30949258,115020.0,115010.0,0.02119]
[1757926326695,0.01302,115000.0,114990.0,0.03875535]
[1757926326891,0.01302,115000.0,114990.0,0.79579535]
[1757926327096,0.01302,115010.0,114990.0,0.79879535]
[1757926327598,0.03589,115010.0,115000.0,0.02119]
[1757926327798,0.03589,115010.0,115000.0,0.95895]
[1757926328197,0.03489,115010.0,115000.0,0.95895]
[1757926328396,0.05850019,115010.0,115000.0,0.95783]
[1757926328602,0.03489,115010.0,115000.0,0.95783]
[1757926328995,0.05849977,115010.0,115000.0,0.95783]
[1757926329198,0.05849977,115010.0,115000.0,0.02119]
[1757926329399,0.05849977,115010.0,115000.0,0.95747]
[1757926329902,0.03489,115010.0,115000.0,0.02319]
[1757926330102,0.05850372,115010.0,115000.0,0.96087]
[1757926330896,0.03489,115010.0,115000.0,0.96087]
[1757926331096,0.05850978,115010.0,115000.0,0.96087]
[1757926331798,0.03489,115010.0,115000.0,0.96087]
[1757926332200,0.03489,115010.0,115000.0,0.02519]
[1757926332405,0.03489,115010.0,115000.0,0.95799]
[1757926333004,0.03489,115010.0,115000.0,0.95771]
[1757926333204,0.03489,115010.0,115000.0,0.95667]
[1757926333406,0.03489,115010.0,115000.0,0.95663]
[1757926334307,0.03489,115010.0,115000.0,0.02519]
[1757926334811,0.03489,115010.0,115000.0,0.004]
[1757926335104,0.28489,115010.0,115000.0,0.004]
[1757926337506,0.30848333,115010.0,115000.0,0.004]
[1757926337900,0.05848333,115010.0,115000.0,0.02519]
[1757926338299,0.05848333,115010.0,115000.0,0.004]
[1757926338504,0.30848333,115010.0,115000.0,0.004]
[1757926340803,0.30848333,115010.0,115000.0,0.02519]
[1757926341204,0.30848333,115010.0,115000.0,0.004]
[1757926341506,0.05848333,115010.0,115000.0,0.02519]
[1757926341810,0.05862923,115010.0,115000.0,0.004]
[1757926342610,0.05862923,115010.0,115000.0,0.02519]
[1757926342906,0.05864112,115010.0,115000.0,0.02519]
[1757926343112,0.03489,115010.0,115000.0,0.02519]
[1757926345205,0.01202,115010.0,115000.0,0.27519]
[1757926345506,0.01302,115020.0,115000.0,0.27519]
[1757926345712,0.01302,115020.0,115000.0,0.03796]
[1757926345912,0.03589,115010.0,115000.0,0.004]
[1757926346413,0.05963148,115010.0,115000.0,0.004]
[1757926346611,0.28589,115010.0,115000.0,0.004]
[1757926346810,0.30963185,115010.0,115000.0,0.004]
[1757926348408,0.38678911,115010.0,115000.0,0.004]
[1757926348607,0.35587266,115010.0,115000.0,0.004]
[1757926349213,0.38676507,115010.0,115000.0,0.004]
[1757926349413,0.35587266,115010.0,115000.0,0.002]
[1757926349711,0.35587266,115010.0,115000.0,0.004]
[1757926350109,0.38675178,115010.0,115000.0,0.004]
[1757926350305,0.38675178,115010.0,115000.0,0.002]
[1757926350709,0.01302,114990.0,114960.0,0.01742904]
[1757926351011,0.02374185,114990.0,114970.0,0.0289]
[1757926351217,0.01302,115000.0,114970.0,0.8489]
[1757926351416,0.01302,115000.0,114970.0,1.0989]
[1757926351913,0.03671352,115000.0,114970.0,1.0989]
[1757926352215,0.01302,115000.0,114970.0,1.0989]
[1757926353115,0.01302,115010.0,114970.0,1.0989]
[1757926353318,0.03671053,115010.0,114970.0,0.935851]
[1757926354019,0.02369053,115010.0,115000.0,0.02119]
[1757926355916,0.02369568,115020.0,115010.0,0.02923]
[1757926356308,0.02369568,115020.0,115010.0,0.27152]
[1757926356509,0.02369568,115020.0,115010.0,0.27923]
[1757926357616,0.02469568,115020.0,115010.0,0.27923]
[1757926358316,0.02469568,115020.0,115010.0,1.24627]
[1757926358517,0.05980568,115020.0,115010.0,0.27152]
[1757926359315,0.05980568,115020.0,115010.0,0.98696]
[1757926360124,0.05980568,115020.0,114990.0,0.08091575]
[1757926360125,0.03511,115010.0,115000.0,0.02152]
[1757926360314,0.05880568,115010.0,115000.0,0.02152]
[1757926360515,0.03511,114990.0,114980.0,0.03935015]
[1757926361222,0.01363,114990.0,114980.0,0.03935015]
[1757926361626,0.01363,115000.0,114980.0,0.03935015]
[1757926361827,0.08147084,115000.0,114980.0,0.04135015]
[1757926362031,0.03511,114990.0,114980.0,0.04135015]
[1757926362827,0.09415,115000.0,114980.0,0.04135015]
[1757926363025,0.11784787,115000.0,114980.0,0.04135015]
[1757926363721,0.11784787,115000.0,114980.0,0.03935015]
[1757926363920,0.11784787,115000.0,114980.0,0.04335015]
[1757926366022,0.03511,114990.0,114980.0,0.04335015]
[1757926366220,0.03511,114990.0,114980.0,0.02552]
[1757926366827,0.03511,114990.0,114980.0,0.02352]
[1757926367028,0.03511,114990.0,114980.0,0.02452]
[1757926367720,0.03511,114990.0,114980.0,0.02252]
[1757926367928,0.03511,114990.0,114980.0,0.02352]
[1757926368314,0.03511,114990.0,114980.0,0.02252]
[1757926368528,0.03511,114990.0,114980.0,0.02352]
[1757926369029,0.03511,114990.0,114980.0,0.02252]
[1757926369823,0.03511,114990.0,114980.0,0.02152]
[1757926370129,0.0382908,114990.0,114980.0,0.02152]
[1757926371628,0.01397,114970.0,114960.0,0.03926904]
[1757926372522,0.01397,114970.0,114960.0,0.98994904]
[1757926372718,0.01397,114980.0,114960.0,0.04126904]
[1757926372919,0.01397,114980.0,114960.0,0.99158904]
[1757926373119,0.01397,114980.0,114960.0,0.99078904]
[1757926373325,0.01397,114980.0,114960.0,0.04326904]
[1757926373628,0.01397,114980.0,114960.0,0.99242904]
[1757926373629,0.0363,114970.0,114960.0,0.99242904]
[1757926374928,0.0363,114970.0,114960.0,0.04326904]
[1757926375133,0.0363,114970.0,114960.0,0.99166904]
[1757926375426,0.01397,114970.0,114960.0,0.99166904]
[1757926375632,0.01397,114980.0,114960.0,0.99166904]
[1757926376128,0.01397,114980.0,114960.0,1.55166904]
[1757926376321,0.0363,114980.0,114970.0,0.94572]
[1757926376632,0.0363,114980.0,114970.0,0.02184]
[1757926376929,0.01363,114990.0,114970.0,0.97451]
[1757926377233,0.03686783,114990.0,114970.0,0.02955]
[1757926377630,0.03686783,114990.0,114970.0,0.88019]
[1757926377826,0.03686783,114990.0,114970.0,1.0671402]
[1757926378031,0.02323783,114990.0,114970.0,1.39119]
[1757926378426,0.18960724,115000.0,114970.0,1.39119]
[1757926378719,0.18960724,115000.0,114970.0,1.4781401]
[1757926378925,0.18960724,115000.0,114970.0,1.8181401]
[1757926379828,0.1865219,115000.0,114970.0,1.8181401]
[1757926380132,0.1865219,115000.0,114970.0,1.8191401]
[1757926380432,0.1865219,115000.0,114990.0,0.02184]
[1757926380733,0.1865219,115000.0,114990.0,0.24461]
[1757926381234,0.1865219,115000.0,114990.0,0.56461]
[1757926381832,0.2088519,115000.0,114990.0,0.96188]
[1757926382021,0.4598519,115000.0,114990.0,0.02184]
[1757926382728,0.01397,114980.0,114970.0,0.96056]
[1757926382936,0.0363,114980.0,114970.0,0.02184]
[1757926383129,0.0363,114980.0,114970.0,0.96056]
[1757926383431,0.01397,114990.0,114970.0,0.96056]
[1757926383727,0.03721288,114990.0,114970.0,0.95936]
[1757926383930,0.03721288,114990.0,114970.0,0.96036]
[1757926384629,0.03721288,114990.0,114970.0,0.959]
[1757926384932,0.03721288,114990.0,114970.0,1.481]
[1757926385134,0.01397,114990.0,114970.0,1.481]
[1757926385627,0.0363,114980.0,114970.0,0.95992]
[1757926385832,0.0363,114980.0,114970.0,0.02384]
[1757926386039,0.0363,114980.0,114970.0,0.95988]
[1757926386233,0.0363,114980.0,114970.0,0.96068]
[1757926386630,0.0363,114980.0,114970.0,0.96052]
[1757926386833,0.0363,114980.0,114970.0,0.9588]
[1757926387034,0.0363,114980.0,114970.0,0.9598]
[1757926387932,0.0363,114980.0,114970.0,0.9588]
[1757926388129,0.0363,114980.0,114970.0,0.9598]
[1757926390039,0.01397,114990.0,114970.0,1.1198]
[1757926390239,0.01657,114990.0,114970.0,1.1198]
[1757926390426,0.03984472,114990.0,114970.0,1.1198]
[1757926390630,0.03984472,114990.0,114970.0,1.3864]
[1757926390838,0.03984472,114990.0,114970.0,0.45044]
[1757926391037,0.03482,114980.0,114970.0,0.29044]
[1757926391235,0.05809302,114980.0,114970.0,1.22424]
[1757926391539,0.05809302,114980.0,114970.0,0.95764]
[1757926392536,0.05809302,114980.0,114970.0,0.02384]
[1757926393631,0.03701302,114980.0,114970.0,0.02384]
[1757926393835,0.02327302,114980.0,114970.0,0.02384]
[1757926395239,0.01657,114990.0,114970.0,0.21384]
[1757926395540,0.02587039,114990.0,114980.0,0.03395]
[1757926395739,0.02587039,114990.0,114980.0,0.18395]
[1757926395943,0.02587039,114990.0,114980.0,0.65395]
[1757926396128,0.02587039,114990.0,114970.0,0.002]
[1757926396129,0.31069039,114990.0,114970.0,0.002]
[1757926396333,0.31069039,114990.0,114970.0,0.95194]
[1757926396334,0.03482,114980.0,114970.0,0.95194]
[1757926396538,0.03482,114980.0,114970.0,0.02318]
[1757926396739,0.03482,114980.0,114970.0,0.95234]
[1757926397743,0.03482,114980.0,114970.0,0.02318]
[1757926397942,0.03482,114980.0,114970.0,0.95086]
[1757926398546,0.03482,114980.0,114970.0,0.94986]
[1757926399446,0.03482,114980.0,114970.0,0.02318]
[1757926399644,0.03482,114980.0,114970.0,0.95086]
[1757926399846,0.0580578,114980.0,114970.0,0.02318]
[1757926401047,0.03482,114980.0,114970.0,0.02318]
[1757926401948,0.0580578,114980.0,114970.0,0.02318]
[1757926405046,0.3080578,114980.0,114970.0,0.02318]
[1757926405245,0.3080578,114980.0,114970.0,0.002]
[1757926407347,0.44065366,114980.0,114970.0,0.002]
[1757926407747,0.52378366,114980.0,114970.0,0.002]
[1757926407949,0.1411878,114980.0,114970.0,0.02318]
[1757926408944,0.14429071,114980.0,114970.0,0.02318]
[1757926409350,0.1063678,114980.0,114970.0,0.45318]
[1757926409547,0.08313,114980.0,114970.0,0.45318]
[1757926409743,0.08313,114980.0,114970.0,0.78318]
[1757926410050,0.08313,114980.0,114970.0,0.27318]
[1757926410251,0.11795,114980.0,114970.0,0.02318]
[1757926410550,0.14116679,114980.0,114970.0,0.02318]
[1757926412648,0.08313,114980.0,114970.0,0.27318]
[1757926413152,0.10635589,114980.0,114970.0,0.27318]
[1757926413548,0.14117589,114980.0,114970.0,0.27318]
[1757926414550,0.14117589,114980.0,114970.0,1.19138]
[1757926414752,0.14117589,114980.0,114970.0,1.19106]
[1757926416156,0.14117589,114980.0,114970.0,0.27318]
[1757926416352,0.14117589,114980.0,114970.0,0.02318]
[1757926416548,0.14117589,114980.0,114970.0,0.002]
[1757926416847,0.14117589,114980.0,114970.0,0.02418]
[1757926419154,0.10635589,114980.0,114970.0,0.02418]
[1757926419354,0.10635589,114980.0,114970.0,0.51418]
[1757926419555,0.10635589,114980.0,114970.0,0.8511289]
[1757926419752,0.10635589,114980.0,114970.0,0.76418]
[1757926420056,0.10636073,114980.0,114970.0,1.04418]
[1757926420257,0.10636073,114980.0,114970.0,1.31078]
[1757926421658,0.08313,114980.0,114970.0,1.31078]
[1757926422162,0.10635949,114980.0,114970.0,1.3977289]
[1757926422656,0.08313,114980.0,114970.0,1.3977289]
[1757926425558,0.08313,114980.0,114970.0,1.31078]
[1757926425759,0.08313,114980.0,114970.0,1.3977289]